fUSD/lending_fUSD_20241106
["ID","MTS","AMOUNT","RATE_DAILY","PERIOD"]
[341436852,1730883040574,-500.0,0.00037808,14]
[341436853,1730883040582,-522.43384783,0.00037808,14]
[341436854,1730883040592,-3745.25,0.00037808,14]
[341436855,1730883040601,-507.80901945,0.00037808,14]
[341436856,1730883040611,-383.16875385,0.00037808,14]
[341436857,1730883040627,-116.83124615,0.00037808,14]
[341436858,1730883040636,-250.0,0.00037808,14]
[341436859,1730883040645,-521.83166754,0.00037808,14]
[341436860,1730883040654,-500.0,0.00037808,14]
[341436861,1730883040663,-45.2478715,0.00037808,14]
[341436862,1730883040674,-454.7521285,0.00037808,14]
[341436863,1730883040683,-44.7478715,0.00037808,14]
[341436864,1730883041091,-455.2521285,0.00037808,14]
[341436865,1730883041103,-424.90893046,0.00037808,14]
[341436866,1730883041115,-75.09106954,0.00037808,14]
[341436867,1730883041125,-378.21463155,0.00037808,14]
[341436868,1730883041137,-140.52185244,0.00037808,14]
[341436869,1730883041146,-500.0,0.00037808,14]
[341436870,1730883041156,-374.645234,0.00037808,14]
[341436871,1730883041168,-132.77477603,0.00037808,14]
[341436872,1730883041177,-544.01126934,0.00037808,14]
[341436873,1730883041186,-118.52287438,0.00037808,14]
[341436874,1730883041198,-495.24024917,0.00037808,14]
[341436875,1730883041210,-550.29488131,0.00037808,14]
[341436876,1730883041221,-500.0,0.00037808,14]
[341436877,1730883041231,-500.0,0.00037808,14]
[341436878,1730883041240,-1042.56486953,0.00037808,14]
[341436879,1730883041251,-17.17513047,0.00037808,14]
[341436880,1730883041260,-500.0,0.00037808,14]
[341436881,1730883041269,-500.0,0.00037808,14]
[341436882,1730883041279,-500.0,0.00037808,14]
[341436883,1730883041290,-508.15114196,0.00037808,14]
[341436884,1730883041299,-500.0,0.00037808,14]
[341436885,1730883041308,-500.0,0.00037808,14]
[341436886,1730883041317,-500.0,0.00037808,14]
[341436887,1730883041327,-504.04525431,0.00037808,14]
[341436888,1730883041335,-500.0,0.00037808,14]
[341436889,1730883041344,-510.59015812,0.00037808,14]
[341436890,1730883041353,-500.0,0.00037808,14]
[341436891,1730883041362,-500.0,0.00037808,14]
[341436892,1730883041371,-500.0,0.00037808,14]
[341436893,1730883041380,-501.80139012,0.00037808,14]
[341436894,1730883041389,-442.6893488,0.00037808,14]
[341436895,1730883041398,-500.0,0.00037808,14]
[341436896,1730883041407,-525.49629337,0.00037808,14]
[341436897,1730883041416,-605.44,0.00037808,14]
[341436898,1730883041425,-504.94289304,0.00037808,14]
[341436899,1730883041434,-500.0,0.00037808,14]
[341436900,1730883041443,-242.09086409,0.00037808,14]
[341436901,1730883041454,-260.77254078,0.00037808,14]
[341436902,1730883041463,-552.35690054,0.00037808,14]
[341436903,1730883041472,-507.5922803,0.00037808,14]
[341436904,1730883041481,-361.8,0.00037808,2]
[341436905,1730883041490,-361.8,0.00037808,2]
[341436906,1730883041499,-361.8,0.00037808,2]
[341436907,1730883041508,-361.8,0.00037808,2]
[341436908,1730883041518,-361.8,0.00037808,2]
[341436909,1730883041527,-361.8,0.00037808,2]
[341436910,1730883041537,-361.8,0.00037808,2]
[341436911,1730883041547,-361.8,0.00037808,2]
[341436912,1730883041557,-361.8,0.00037808,2]
[341436913,1730883041567,-361.8,0.00037808,2]
[341436914,1730883041579,-361.8,0.00037808,2]
[341436915,1730883041589,-361.8,0.00037808,2]
[341436916,1730883041600,-361.8,0.00037808,2]
[341436917,1730883041611,-361.8,0.00037808,2]
[341436918,1730883041621,-361.8,0.00037808,2]
[341436919,1730883041630,-361.8,0.00037808,2]
[341436920,1730883041639,-361.8,0.00037808,2]
[341436921,1730883041649,-361.8,0.00037808,2]
[341436922,1730883041659,-361.8,0.00037808,2]
[341436923,1730883041669,-361.8,0.00037808,2]
[341436924,1730883041678,-361.8,0.00037808,2]
[341436925,1730883041688,-361.8,0.00037808,2]
[341436926,1730883041697,-361.8,0.00037808,2]
[341436927,1730883041707,-361.8,0.00037808,2]
[341436928,1730883041716,-361.8,0.00037808,2]
[341436929,1730883041725,-319.42115503,0.0003781,2]
[341436930,1730883041734,-3539.87344381,0.00037811,15]
[341436931,1730883041748,-72.83233168,0.00037811,15]
[341436932,1730883041757,-318.59168618,0.00037819,15]
[341436933,1730883041766,-1500.0,0.00037821,2]
[341436934,1730883041775,-150.0,0.00037832,2]
[341436935,1730883041784,-150.0,0.00037834,2]
[341436936,1730883041794,-150.0,0.00037837,2]
[341436937,1730883041803,-150.0,0.00037839,2]
[341436938,1730883041815,-150.0,0.00037845,2]
[341436939,1730883041826,-150.0,0.0003785,2]
[341436940,1730883041840,-161.9160433,0.00037852,2]
[341436941,1730883041852,-150.0,0.00037854,2]
[341436942,1730883041864,-150.0,0.00037854,2]
[341436943,1730883041875,-319.42115503,0.00037855,2]
[341436944,1730883041888,-3612.70577549,0.00037856,15]
[341436945,1730883041899,-150.0,0.00037858,2]
[341436946,1730883041910,-150.0,0.00037858,2]
[341436947,1730883041921,-150.0,0.0003786,2]
[341436948,1730883041933,-150.0,0.00037861,2]
[341436949,1730883041946,-150.0,0.00037867,2]
[341436950,1730883041958,-150.0,0.0003787,2]
[341436951,1730883041972,-581.82025964,0.00037873,5]
[341436952,1730883041984,-150.0,0.00037875,2]
[341436953,1730883041995,-150.0,0.0003788,2]
[341436954,1730883042007,-150.0,0.0003788,2]
[341436955,1730883042020,-150.0,0.00037883,2]
[341436956,1730883042032,-150.0,0.00037884,2]
[341436957,1730883042046,-150.0,0.00037885,2]
[341436958,1730883042059,-758.21085718,0.00037888,2]
[341436959,1730883042070,-22227.35101581,0.00037895,10]
[341436960,1730883042086,-7094.29459475,0.00037895,10]
[341436961,1730883042099,-3671.08573939,0.00037895,10]
[341436962,1730883042112,-5255.92241343,0.00037895,10]
[341436963,1730883042126,-563.31326908,0.00037895,10]
[341436964,1730883042140,-428.61941707,0.00037895,10]
[341436965,1730883042154,-824.51259311,0.00037895,10]
[341436966,1730883042167,-1792.74736127,0.00037895,10]
[341436967,1730883042181,-451.00207171,0.00037895,10]
[341436968,1730883042196,-1306.63194,0.00037895,10]
[341436969,1730883042257,-47.99665509,0.00037895,10]
[341436970,1730883042269,-410.72725831,0.00037895,10]
[341436971,1730883042282,-319.8,0.00037895,10]
[341436972,1730883042296,-438.333,0.00037895,10]
[341436973,1730883042310,-4777.91302737,0.00037895,10]
[341436974,1730883042323,-997.81627122,0.00037895,10]
[341436975,1730883042337,-2066.88236049,0.00037895,10]
[341436976,1730883042351,-15035.330796,0.00037895,10]
[341436977,1730883042363,-150.0,0.00037895,2]
[341436978,1730883042375,-860.1030372,0.00037897,2]
[341436979,1730883042388,-30038.1055628,0.00037897,2]
[341436980,1730883042400,-500.0,0.00037897,14]
[341436981,1730883042413,-500.0,0.00037897,14]
[341436982,1730883042426,-632.41,0.00037897,14]
[341436983,1730883042438,-513.89388112,0.00037897,14]
[341436984,1730883042449,-564.94,0.00037897,14]
[341436985,1730883042461,-279.36,0.00037897,14]
[341436986,1730883042471,-508.6022865,0.00037897,14]
[341436987,1730883042481,-500.0,0.00037897,14]
[341436988,1730883042491,-500.0,0.00037897,14]
[341436989,1730883042501,-500.0,0.00037897,14]
[341436990,1730883042511,-500.0,0.00037897,14]
[341436991,1730883042521,-500.0,0.00037897,14]
[341436992,1730883042532,-500.0,0.00037897,14]
[341436994,1730883042543,-500.0,0.00037897,14]
[341436995,1730883042554,-500.0,0.00037897,14]
[341436996,1730883042566,-500.0,0.00037897,14]
[341436997,1730883042577,-500.0,0.00037897,14]
[341436998,1730883042590,-3745.25,0.00037897,14]
[341436999,1730883042600,-514.63989176,0.00037897,14]
[341437000,1730883042610,-500.0,0.00037897,14]
[341437001,1730883042622,-500.0,0.00037897,14]
[341437002,1730883042636,-500.0,0.00037897,14]
[341437003,1730883042648,-500.0,0.00037897,14]
[341437004,1730883042659,-500.0,0.00037897,14]
[341437005,1730883042671,-500.0,0.00037897,14]
[341437007,1730883042683,-500.0,0.00037897,14]
[341437009,1730883042694,-500.0,0.00037897,14]
[341437010,1730883042704,-500.0,0.00037897,14]
[341437011,1730883042716,-1059.74,0.00037897,14]
[341437012,1730883042726,-1059.74,0.00037897,14]
[341437013,1730883042737,-500.0,0.00037897,14]
[341437014,1730883042747,-500.0,0.00037897,14]
[341437015,1730883042757,-500.0,0.00037897,14]
[341437016,1730883042771,-500.0,0.00037897,14]
[341437017,1730883042782,-500.0,0.00037897,14]
[341437018,1730883042793,-500.0,0.00037897,14]
[341437019,1730883042804,-500.0,0.00037897,14]
[341437020,1730883042814,-511.78349442,0.00037897,14]
[341437021,1730883042824,-500.0,0.00037897,14]
[341437022,1730883042835,-500.0,0.00037897,14]
[341437023,1730883042846,-500.0,0.00037897,14]
[341437025,1730883042857,-500.0,0.00037897,14]
[341437027,1730883042868,-500.0,0.00037897,14]
[341437029,1730883042878,-500.0,0.00037897,14]
[341437031,1730883042890,-500.0,0.00037897,14]
[341437033,1730883042901,-552.84167951,0.00037897,14]
[341437035,1730883042912,-605.44,0.00037897,14]
[341437036,1730883042923,-605.44,0.00037897,14]
[341437037,1730883042936,-500.0,0.00037897,14]
[341437038,1730883042948,-204.6780203,0.00037898,2]
[341437039,1730883042963,-113555.462,0.00037898,2]
[341437040,1730883042974,-173785.6005,0.00037898,2]
[341437041,1730883042985,-500.0,0.00037899,14]
[341437042,1730883042997,-500.0,0.00037899,14]
[341437043,1730883043009,-564.94,0.00037899,14]
[341437044,1730883043021,-500.0,0.00037899,14]
[341437045,1730883043031,-500.0,0.00037899,14]
[341437046,1730883043043,-500.0,0.00037899,14]
[341437047,1730883043055,-500.0,0.00037899,14]
[341437048,1730883043065,-513.86528837,0.00037899,14]
[341437049,1730883043076,-3745.25,0.00037899,14]
[341437050,1730883043089,-500.0,0.00037899,14]
[341437051,1730883043102,-500.0,0.00037899,14]
[341437052,1730883043114,-500.0,0.00037899,14]
[341437053,1730883043125,-500.0,0.00037899,14]
[341437054,1730883043137,-500.0,0.00037899,14]
[341437055,1730883043147,-1059.74,0.00037899,14]
[341437056,1730883043159,-500.0,0.00037899,14]
[341437057,1730883043169,-500.0,0.00037899,14]
[341437058,1730883043180,-500.0,0.00037899,14]
[341437059,1730883043190,-500.0,0.00037899,14]
[341437060,1730883043201,-605.44,0.00037899,14]
[341437061,1730883043213,-207.03016123,0.00037899,2]
[341437062,1730883043224,-1416.68122369,0.00037899,2]
[341437063,1730883043235,-319.42115503,0.00037899,2]
[341437064,1730883043245,-1416.68122369,0.000379,2]
[341437065,1730883043255,-767192.12491907,0.000379,2]
[341437066,1730883043270,-875.69451227,0.000379,2]
[341437067,1730883043284,-1284.68,0.000379,2]
[341437068,1730883043297,-345.0,0.000379,2]
[341437069,1730883043311,-488.66430191,0.000379,2]
[341437071,1730883043325,-3485.76918571,0.000379,2]
[341437073,1730883043337,-867.57638522,0.000379,2]
[341437147,1730883044179,-1105.72838435,0.000379,2]
[341437187,1730883044588,-2607.20000779,0.000379,2]
[341437189,1730883044600,-290628.78100827,0.000379,2]
[341437202,1730883044716,-123.44569299,0.000379,2]
[341437204,1730883044729,-678.00206129,0.000379,2]
[341437206,1730883044741,-873.31174654,0.000379,2]
[341437208,1730883044754,-88240.74425803,0.000379,2]
[341437211,1730883044767,-40139.00648398,0.000379,2]
[341437213,1730883044778,-2314.74300993,0.000379,2]
[341437222,1730883044850,-7494.17860399,0.000379,2]
[341437224,1730883044862,-18227.0,0.000379,2]
[341437227,1730883044883,-187370.85720171,0.000379,2]
[341437258,1730883044892,-25364.47375368,0.000379,2]
[341437261,1730883045317,-165.99564774,0.000379,11]
[341437264,1730883045346,-250000.0,0.000379,2]
[341437267,1730883045369,-494.60842309,0.000379,2]
[341437269,1730883045379,-200.0,0.000379,13]
[341437271,1730883045389,-161.9160433,0.000379,2]
[341437272,1730883045398,-204.6780203,0.000379,2]
[341437274,1730883045408,-3612.70577549,0.000379,15]
[341437276,1730883045419,-1416.68122369,0.000379,2]
[341437278,1730883045429,-249.51990081,0.000379,14]
[341437280,1730883045439,-150.0,0.00037902,2]
[341437281,1730883045448,-1500.0,0.00037903,2]
[341437283,1730883045458,-1500.0,0.00037904,2]
[341437285,1730883045468,-150.0,0.00037904,2]
[341437287,1730883045478,-296.39715606,0.00037905,2]
[341437289,1730883045489,-150.0,0.00037905,2]
[341437290,1730883045499,-150.0,0.00037907,2]
[341437292,1730883045509,-150.0,0.00037909,2]
[341437294,1730883045519,-150.0,0.00037911,2]
[341437296,1730883045529,-150.0,0.00037921,2]
[341437298,1730883045544,-1500.0,0.00037923,2]
[341437301,1730883045554,-1500.0,0.00037924,2]
[341437304,1730883045564,-150.0,0.0003793,2]
[341437307,1730883045575,-150.0,0.0003794,2]
[341437310,1730883045585,-150.0,0.00037941,2]
[341437313,1730883045594,-150.0,0.00037941,2]
[341437315,1730883045603,-319.42115503,0.00037944,2]
[341437317,1730883045614,-500.0,0.00037949,14]
[341437319,1730883045624,-500.0,0.00037949,14]
[341437321,1730883045635,-500.0,0.00037949,14]
[341437323,1730883045645,-500.0,0.00037949,14]
[341437324,1730883045654,-1004.58,0.00037949,14]
[341437326,1730883045664,-500.0,0.00037949,14]
[341437328,1730883045675,-500.0,0.00037949,14]
[341437330,1730883045685,-500.0,0.00037949,14]
[341437332,1730883045695,-500.0,0.00037949,14]
[341437333,1730883045705,-500.0,0.00037949,14]
[341437335,1730883045717,-500.0,0.00037949,14]
[341437337,1730883045727,-225.00247287,0.00037954,2]
[341437339,1730883045738,-452.0,0.00037955,2]
[341437341,1730883045748,-1252.0,0.00037955,2]
[341437343,1730883045758,-558.0,0.00037955,2]
[341437345,1730883045769,-1988.0,0.00037955,2]
[341437347,1730883045780,-1795.0,0.00037955,2]
[341437348,1730883045791,-2907.0,0.00037955,2]
[341437350,1730883045802,-1257.0,0.00037955,2]
[341437352,1730883045812,-813.0,0.00037955,2]
[341437354,1730883045822,-920.0,0.00037955,2]
[341437356,1730883045832,-220.0,0.00037955,2]
[341437358,1730883045842,-274.958,0.00037955,2]
[341437360,1730883045852,-10598.222,0.00037955,2]
[341437361,1730883045862,-165.0,0.00037955,2]
[341437363,1730883045873,-1157.0,0.00037955,2]
[341437365,1730883045883,-152.371,0.00037955,2]
[341437367,1730883045894,-5920.0,0.00037955,2]
[341437369,1730883045904,-283.761,0.00037955,2]
[341437371,1730883045914,-200.0,0.00037955,2]
[341437372,1730883045924,-150.0,0.00037955,2]
[341437374,1730883045934,-150.0,0.00037955,2]
[341437376,1730883045944,-150.0,0.00037961,2]
[341437378,1730883045955,-150.0,0.00037965,2]
[341437380,1730883045969,-500.0,0.00037966,14]
[341437382,1730883045979,-500.0,0.00037966,14]
[341437384,1730883045989,-564.94,0.00037966,14]
[341437386,1730883045999,-150.0,0.00037966,2]
[341437387,1730883046010,-3745.25,0.00037966,14]
[341437389,1730883046020,-9776.4500235,0.00037967,2]
[341437391,1730883046030,-235.2149114,0.00037967,2]
[341437393,1730883046042,-7464.2751549,0.00037967,2]
[341437395,1730883046053,-5347.4264168,0.00037967,2]
[341437397,1730883046063,-7411.5390569,0.00037967,2]
[341437398,1730883046074,-543.49444852,0.00037973,2]
[341437400,1730883046084,-500.0,0.00037973,5]
[341437402,1730883046095,-8723.6455252,0.00037974,2]
[341437404,1730883046105,-7670.8410269,0.00037974,2]
[341437406,1730883046114,-235.2149114,0.00037974,2]
[341437407,1730883046124,-235.2149114,0.00037974,2]
[341437409,1730883046135,-6504.698414,0.00037974,2]
[341437411,1730883046146,-5545.1216732,0.00037974,2]
[341437413,1730883046156,-4656.8378698,0.00037974,2]
[341437415,1730883046166,-3966.2493228,0.00037974,2]
[341437416,1730883046175,-6454.3825503,0.00037974,2]
[341437418,1730883046186,-5497.2260437,0.00037974,2]
[341437420,1730883046196,-1500.0,0.00037976,2]
[341437422,1730883046207,-546.2907078,0.00037978,14]
[341437424,1730883046218,-500.0,0.00037978,14]
[341437426,1730883046229,-500.0,0.00037978,14]
[341437428,1730883046240,-500.0,0.00037978,14]
[341437429,1730883046250,-201.03,0.00037978,14]
[341437430,1730883046260,-500.0,0.00037978,14]
[341437431,1730883046271,-500.0,0.00037978,14]
[341437432,1730883046281,-500.0,0.00037978,14]
[341437433,1730883046292,-500.0,0.00037978,14]
[341437434,1730883046302,-500.0,0.00037978,14]
[341437435,1730883046313,-768.17,0.00037978,14]
[341437436,1730883046323,-500.0,0.00037978,14]
[341437437,1730883046333,-301.53,0.00037978,14]
[341437438,1730883046343,-500.0,0.00037978,14]
[341437439,1730883046353,-500.0,0.00037978,14]
[341437440,1730883046363,-500.0,0.00037978,14]
[341437441,1730883046373,-500.0,0.00037978,14]
[341437443,1730883046383,-500.0,0.00037978,14]
[341437444,1730883046392,-515.60682184,0.00037978,14]
[341437446,1730883046403,-500.0,0.00037978,14]
[341437448,1730883046413,-338.14,0.00037979,14]
[341437450,1730883046423,-318.61,0.00037979,14]
[341437452,1730883046433,-319.89,0.00037979,14]
[341437454,1730883046443,-586.91,0.00037979,14]
[341437456,1730883046453,-993.45087,0.00037979,2]
[341437458,1730883046465,-17191.19131122,0.0003798,2]
[341437460,1730883046474,-200.0,0.0003798,2]
[341437462,1730883046484,-1500.0,0.00037985,2]
[341437464,1730883046494,-500.0,0.00037989,14]
[341437466,1730883046504,-500.0,0.00037989,14]
[341437468,1730883046514,-500.85112163,0.00037989,14]
[341437470,1730883046525,-696.39,0.00037989,14]
[341437472,1730883046535,-500.0,0.00037992,14]
[341437474,1730883046545,-500.0,0.00037992,14]
[341437476,1730883046555,-500.0,0.00037992,14]
[341437478,1730883046565,-500.0,0.00037993,14]
[341437480,1730883046575,-500.0,0.00037993,14]
[341437482,1730883046584,-500.0,0.00037994,14]
[341437483,1730883046594,-500.0,0.00037994,14]
[341437486,1730883046604,-696.39,0.00037994,14]
[341437488,1730883046613,-373.76340745,0.00037995,14]
[341437490,1730883046623,-500.0,0.00037995,14]
[341437492,1730883046632,-500.0,0.00037996,14]
[341437494,1730883046641,-500.0,0.00037996,14]
[341437496,1730883046650,-649.73,0.00037996,14]
[341437498,1730883046660,-500.0,0.00037996,14]
[341437500,1730883046669,-500.0,0.00037996,14]
[341437502,1730883046679,-1004.58,0.00037996,14]
[341437503,1730883046688,-500.0,0.00037996,14]
[341437505,1730883046697,-500.0,0.00037996,14]
[341437507,1730883046706,-500.0,0.00037996,14]
[341437509,1730883046718,-500.0,0.00037996,14]
[341437511,1730883046727,-150.0,0.00037996,2]
[341437513,1730883046737,-560.51453089,0.00037996,14]
[341437515,1730883046746,-500.0,0.00037996,14]
[341437517,1730883046755,-500.0,0.00037997,14]
[341437519,1730883046764,-500.0,0.00037997,14]
[341437521,1730883046773,-500.0,0.00037997,14]
[341437523,1730883046783,-619.8,0.00037997,14]
[341437525,1730883046792,-585.98214676,0.00037997,14]
[341437527,1730883046802,-874.9,0.00037997,14]
[341437529,1730883046811,-500.0,0.00037997,14]
[341437531,1730883046821,-489.85,0.00037997,14]
[341437533,1730883046831,-500.0,0.00037997,10]
[341437535,1730883046840,-539.45137931,0.00037997,14]
[341437537,1730883046850,-500.0,0.00037997,14]
[341437539,1730883046860,-500.0,0.00037997,14]
[341437541,1730883046870,-500.0,0.00037997,14]
[341437543,1730883046879,-500.0,0.00037997,14]
[341437545,1730883046890,-500.0,0.00037997,14]
[341437547,1730883046900,-500.0,0.00037997,14]
[341437549,1730883046909,-500.0,0.00037997,14]
[341437551,1730883046919,-551.59,0.00037997,14]
[341437553,1730883046929,-500.0,0.00037997,14]
[341437555,1730883046938,-500.0,0.00037997,14]
[341437557,1730883046947,-500.0,0.00037997,14]
[341437559,1730883046957,-162.92,0.00037997,14]
[341437561,1730883046972,-500.0,0.00037997,14]
[341437563,1730883046982,-500.0,0.00037997,14]
[341437565,1730883046992,-500.0,0.00037997,14]
[341437567,1730883047002,-768.17,0.00037997,14]
[341437569,1730883047013,-500.0,0.00037997,14]
[341437571,1730883047022,-245.97145047,0.00037997,14]
[341437573,1730883047032,-564.94,0.00037997,14]
[341437575,1730883047044,-391.85,0.00037997,14]
[341437577,1730883047053,-500.0,0.00037997,14]
[341437579,1730883047063,-500.0,0.00037997,14]
[341437581,1730883047073,-500.0,0.00037997,14]
[341437583,1730883047083,-500.0,0.00037997,14]
[341437585,1730883047093,-500.0,0.00037997,14]
[341437587,1730883047102,-500.0,0.00037997,14]
[341437589,1730883047112,-500.0,0.00037997,14]
[341437591,1730883047122,-500.0,0.00037997,14]
[341437593,1730883047135,-500.0,0.00037997,14]
[341437595,1730883047145,-500.0,0.00037997,14]
[341437597,1730883047155,-500.0,0.00037997,14]
[341437599,1730883047165,-500.0,0.00037997,14]
[341437601,1730883047175,-500.0,0.00037997,14]
[341437603,1730883047185,-500.0,0.00037997,14]
[341437605,1730883047195,-500.0,0.00037997,14]
[341437607,1730883047206,-500.0,0.00037997,14]
[341437609,1730883047220,-500.0,0.00037997,14]
[341437611,1730883047230,-500.0,0.00037997,14]
[341437613,1730883047240,-500.0,0.00037997,14]
[341437615,1730883047251,-500.0,0.00037997,14]
[341437618,1730883047261,-500.0,0.00037997,14]
[341437620,1730883047271,-500.0,0.00037997,14]
[341437622,1730883047281,-311.04,0.00037997,14]
[341437624,1730883047291,-3745.25,0.00037997,14]
[341437626,1730883047301,-500.0,0.00037997,14]
[341437628,1730883047311,-500.0,0.00037997,14]
[341437630,1730883047321,-565.91415946,0.00037997,14]
[341437632,1730883047331,-500.0,0.00037997,14]
[341437634,1730883047340,-500.0,0.00037997,14]
[341437636,1730883047350,-500.0,0.00037997,14]
[341437638,1730883047360,-500.0,0.00037997,14]
[341437640,1730883047370,-500.0,0.00037997,14]
[341437642,1730883047380,-500.0,0.00037997,14]
[341437644,1730883047390,-500.0,0.00037997,14]
[341437646,1730883047400,-577.87083978,0.00037997,14]
[341437648,1730883047410,-500.0,0.00037997,14]
[341437650,1730883047419,-1059.74,0.00037997,14]
[341437652,1730883047429,-500.0,0.00037997,14]
[341437654,1730883047438,-1059.74,0.00037997,14]
[341437656,1730883047448,-1059.74,0.00037997,14]
[341437658,1730883047458,-1059.74,0.00037997,14]
[341437660,1730883047472,-1059.74,0.00037997,14]
[341437662,1730883047482,-1059.74,0.00037997,14]
[341437664,1730883047492,-1059.74,0.00037997,14]
[341437666,1730883047501,-500.0,0.00037997,14]
[341437668,1730883047511,-500.0,0.00037997,14]
[341437670,1730883047520,-500.0,0.00037997,14]
[341437672,1730883047530,-500.0,0.00037997,14]
[341437674,1730883047539,-573.47908179,0.00037997,14]
[341437676,1730883047548,-500.0,0.00037997,14]
[341437678,1730883047558,-500.0,0.00037997,14]
[341437680,1730883047567,-500.0,0.00037997,14]
[341437682,1730883047576,-500.0,0.00037997,14]
[341437684,1730883047586,-605.44,0.00037997,14]
[341437686,1730883047595,-605.44,0.00037997,14]
[341437688,1730883047606,-605.44,0.00037997,14]
[341437690,1730883047615,-605.44,0.00037997,14]
[341437692,1730883047625,-605.44,0.00037997,14]
[341437694,1730883047635,-605.44,0.00037997,14]
[341437696,1730883047645,-605.44,0.00037997,14]
[341437698,1730883047655,-1625.56388837,0.00037998,2]
[341437700,1730883047665,-500.0,0.00037998,14]
[341437702,1730883047675,-191.79327704,0.00037998,2]
[341437704,1730883047684,-500.0,0.00037998,14]
[341437706,1730883047693,-500.0,0.00037998,14]
[341437708,1730883047703,-633.66384166,0.00037998,14]
[341437710,1730883047713,-636.33,0.00037998,14]
[341437712,1730883047723,-500.0,0.00037998,14]
[341437714,1730883047732,-500.0,0.00037998,14]
[341437716,1730883047741,-500.0,0.00037998,14]
[341437718,1730883047751,-500.0,0.00037998,14]
[341437720,1730883047761,-500.0,0.00037998,14]
[341437722,1730883047771,-500.0,0.00037998,14]
[341437724,1730883047781,-500.0,0.00037998,14]
[341437726,1730883047789,-500.0,0.00037998,14]
[341437728,1730883047798,-273.32309545,0.00037998,14]
[341437730,1730883047807,-500.0,0.00037998,14]
[341437731,1730883047817,-500.0,0.00037998,14]
[341437733,1730883047827,-550.01,0.00037998,14]
[341437736,1730883047836,-502.79,0.00037998,14]
[341437737,1730883047846,-500.0,0.00037998,14]
[341437740,1730883047855,-500.0,0.00037998,14]
[341437742,1730883047865,-500.0,0.00037998,14]
[341437744,1730883047875,-546.54893419,0.00037998,14]
[341437746,1730883047884,-500.0,0.00037998,14]
[341437748,1730883047893,-621.14309289,0.00037998,14]
[341437750,1730883047903,-500.0,0.00037998,14]
[341437752,1730883047913,-161.71606481,0.00037998,14]
[341437754,1730883047922,-500.0,0.00037998,14]
[341437756,1730883047931,-500.0,0.00037998,14]
[341437758,1730883047940,-500.0,0.00037998,14]
[341437760,1730883047950,-500.0,0.00037998,14]
[341437761,1730883047960,-500.0,0.00037998,14]
[341437763,1730883047974,-500.0,0.00037998,14]
[341437765,1730883047984,-500.0,0.00037998,14]
[341437767,1730883047993,-432.99370036,0.00037998,14]
[341437769,1730883048005,-502.92947622,0.00037998,14]
[341437771,1730883048015,-500.0,0.00037998,14]
[341437773,1730883048024,-557.48,0.00037998,14]
[341437775,1730883048034,-500.0,0.00037998,14]
[341437777,1730883048044,-500.0,0.00037998,14]
[341437779,1730883048054,-500.0,0.00037998,14]
[341437781,1730883048064,-500.0,0.00037998,14]
[341437783,1730883048073,-500.0,0.00037998,14]
[341437785,1730883048083,-500.0,0.00037998,14]
[341437787,1730883048095,-500.0,0.00037998,14]
[341437789,1730883048105,-500.0,0.00037998,14]
[341437791,1730883048115,-500.0,0.00037998,14]